[Event "Late-Titled-Tuesday-Blitz-August-29-2023"]
[Site "Chess.com"]
[Date "2023.08.29"]
[Round "5"]
[White "GMKrikor"]
[Black "SaqoChess_Twitch"]
[Result "1-0"]
[WhiteElo "2885"]
[BlackElo "2628"]
[TimeControl "180+1"]
[EndTime "14:55:37 PDT"]
[Termination "GMKrikor won by resignation"]

1. Nf3 {[%clk 0:03:00.9]} 1... d5 {[%clk 0:02:54.2]} 2. c4 {[%clk 0:03:00.8]}
2... e6 {[%clk 0:02:54.3]} 3. d4 {[%clk 0:02:59.4]} 3... Nf6 {[%clk 0:02:53]} 4.
cxd5 {[%clk 0:02:59.7]} 4... exd5 {[%clk 0:02:47]} 5. Nc3 {[%clk 0:02:59.6]}
5... h6 {[%clk 0:02:38.6]} 6. Bf4 {[%clk 0:02:58.1]} 6... a6 {[%clk 0:02:37.6]}
7. e3 {[%clk 0:02:48.8]} 7... Bd6 {[%clk 0:02:35]} 8. Bxd6 {[%clk 0:02:43.9]}
8... Qxd6 {[%clk 0:02:33.8]} 9. Bd3 {[%clk 0:02:43.4]} 9... O-O {[%clk
0:02:34.3]} 10. O-O {[%clk 0:02:20.3]} 10... Nc6 {[%clk 0:02:34.1]} 11. h3
{[%clk 0:02:16.4]} 11... Ne7 {[%clk 0:02:33.4]} 12. Rc1 {[%clk 0:02:15.6]} 12...
Bf5 {[%clk 0:02:32.1]} 13. Bxf5 {[%clk 0:01:47.1]} 13... Nxf5 {[%clk 0:02:33]}
14. Qb3 {[%clk 0:01:47.4]} 14... c6 {[%clk 0:02:17.5]} 15. Ne5 {[%clk
0:01:44.9]} 15... Rab8 {[%clk 0:02:12.4]} 16. Qc2 {[%clk 0:01:42.6]} 16... Ne7
{[%clk 0:02:09.5]} 17. a3 {[%clk 0:01:24.3]} 17... Nd7 {[%clk 0:02:09.2]} 18.
Nd3 {[%clk 0:01:22.3]} 18... Ng6 {[%clk 0:02:06.2]} 19. b4 {[%clk 0:01:20.6]}
19... f5 {[%clk 0:02:01.8]} 20. Ne2 {[%clk 0:01:19.1]} 20... Nf6 {[%clk
0:02:01.1]} 21. Ndf4 {[%clk 0:01:18.2]} 21... Nxf4 {[%clk 0:02:00.2]} 22. Nxf4
{[%clk 0:01:19.1]} 22... Ne4 {[%clk 0:01:59.4]} 23. f3 {[%clk 0:01:19.5]} 23...
Ng5 {[%clk 0:01:58.4]} 24. Rfe1 {[%clk 0:01:18.4]} 24... Ne6 {[%clk 0:01:56.8]}
25. Nd3 {[%clk 0:01:15]} 25... f4 {[%clk 0:01:55.6]} 26. Qd2 {[%clk 0:00:47.1]}
26... fxe3 {[%clk 0:01:54.5]} 27. Qxe3 {[%clk 0:00:48]} 27... Rbe8 {[%clk
0:01:54.2]} 28. Ne5 {[%clk 0:00:47.6]} 28... Rf5 {[%clk 0:01:45.4]} 29. Ng4
{[%clk 0:00:43.5]} 29... Rff8 {[%clk 0:01:34.2]} 30. Qd2 {[%clk 0:00:40.6]}
30... Nf4 {[%clk 0:01:33]} 31. Rxe8 {[%clk 0:00:38.1]} 31... Rxe8 {[%clk
0:01:31.5]} 32. Ne5 {[%clk 0:00:38.8]} 32... Qf6 {[%clk 0:01:29.2]} 33. Kh2
{[%clk 0:00:37.3]} 33... Nh5 {[%clk 0:01:18.4]} 34. Re1 {[%clk 0:00:35.9]} 34...
Qh4 {[%clk 0:01:16.7]} 35. Kg1 {[%clk 0:00:31.1]} 35... Qg3 {[%clk 0:01:15.7]}
36. Qf2 {[%clk 0:00:30.2]} 36... Qg5 {[%clk 0:01:13]} 37. Ng4 {[%clk 0:00:26.1]}
37... Rxe1+ {[%clk 0:01:13.4]} 38. Qxe1 {[%clk 0:00:27]} 38... Kh7 {[%clk
0:01:03.9]} 39. Qe3 {[%clk 0:00:20.7]} 39... Qxe3+ {[%clk 0:00:50.2]} 40. Nxe3
{[%clk 0:00:20.6]} 40... Nf6 {[%clk 0:00:45.1]} 41. Kf2 {[%clk 0:00:20.4]} 41...
g6 {[%clk 0:00:45.1]} 42. a4 {[%clk 0:00:15]} 42... Kg7 {[%clk 0:00:44.8]} 43.
a5 {[%clk 0:00:15.6]} 43... h5 {[%clk 0:00:44.1]} 44. Nc2 {[%clk 0:00:16]} 44...
Nd7 {[%clk 0:00:39.5]} 45. h4 {[%clk 0:00:15.8]} 45... Kf6 {[%clk 0:00:39]} 46.
Ne1 {[%clk 0:00:15.8]} 46... Nf8 {[%clk 0:00:39.5]} 47. Nd3 {[%clk 0:00:15.8]}
47... Ne6 {[%clk 0:00:40.2]} 48. Ke3 {[%clk 0:00:16.5]} 48... g5 {[%clk
0:00:40.5]} 49. hxg5+ {[%clk 0:00:16.7]} 49... Kxg5 {[%clk 0:00:41.4]} 50. Nc5
{[%clk 0:00:17.2]} 50... Nd8 {[%clk 0:00:22.7]} 51. g3 {[%clk 0:00:16.6]} 51...
Kf5 {[%clk 0:00:23]} 52. Kf2 {[%clk 0:00:15.4]} 52... Kg5 {[%clk 0:00:22.7]} 53.
Kg2 {[%clk 0:00:16]} 53... Nf7 {[%clk 0:00:14.8]} 54. Nxb7 {[%clk 0:00:14.9]}
54... Nd6 {[%clk 0:00:15.5]} 55. Nxd6 {[%clk 0:00:15]} 55... Kf6 {[%clk
0:00:14]} 56. Nb7 {[%clk 0:00:14.8]} 56... Ke7 {[%clk 0:00:13.5]} 57. Nc5 {[%clk
0:00:15.7]} 57... Kd6 {[%clk 0:00:14.3]} 58. Nxa6 {[%clk 0:00:16.1]} 58... Kd7
{[%clk 0:00:14.8]} 59. Nc5+ {[%clk 0:00:17]} 59... Kc7 {[%clk 0:00:15.5]} 60.
Kh3 {[%clk 0:00:17.4]} 60... Kb8 {[%clk 0:00:15.4]} 61. Kh4 {[%clk 0:00:12.8]}
61... Ka7 {[%clk 0:00:16.3]} 62. Kxh5 {[%clk 0:00:13.1]} 62... Kb8 {[%clk
0:00:17.2]} 63. g4 {[%clk 0:00:13.6]} 63... Ka7 {[%clk 0:00:18.1]} 64. g5 {[%clk
0:00:14.3]} 64... Kb8 {[%clk 0:00:18.9]} 65. g6 {[%clk 0:00:15]} 65... Ka7
{[%clk 0:00:19.6]} 66. g7 {[%clk 0:00:15.6]} 66... Ka8 {[%clk 0:00:19.6]} 67.
g8=Q+ {[%clk 0:00:15.7]} 67... Ka7 {[%clk 0:00:20.5]} 68. Qf7+ {[%clk
0:00:15.8]} 1-0

[Event "Late-Titled-Tuesday-Blitz-August-29-2023"]
[Site "Chess.com"]
[Date "2023.08.29"]
[Round "5"]
[White "Witik"]
[Black "pedromartinez91"]
[Result "0-1"]
[WhiteElo "2762"]
[BlackElo "2514"]
[TimeControl "180+1"]
[EndTime "14:55:40 PDT"]
[Termination "pedromartinez91 won by resignation"]

1. d4 {[%clk 0:02:59.7]} 1... Nf6 {[%clk 0:02:57.4]} 2. Bf4 {[%clk 0:02:59.5]}
2... e6 {[%clk 0:02:55.9]} 3. e3 {[%clk 0:02:59.6]} 3... c5 {[%clk 0:02:54.5]}
4. c3 {[%clk 0:02:59.8]} 4... b6 {[%clk 0:02:53.7]} 5. h3 {[%clk 0:02:56.3]}
5... Be7 {[%clk 0:02:51.6]} 6. Nf3 {[%clk 0:02:56.3]} 6... O-O {[%clk
0:02:50.3]} 7. a4 {[%clk 0:02:54.2]} 7... Ba6 {[%clk 0:02:35.5]} 8. Bb5 {[%clk
0:02:49.2]} 8... Qc8 {[%clk 0:02:26.9]} 9. Qe2 {[%clk 0:02:45]} 9... cxd4 {[%clk
0:02:21.2]} 10. exd4 {[%clk 0:02:41.9]} 10... d6 {[%clk 0:01:46.3]} 11. O-O
{[%clk 0:02:36.4]} 11... Bb7 {[%clk 0:01:44.1]} 12. Nbd2 {[%clk 0:02:33.7]}
12... Bc6 {[%clk 0:01:40.9]} 13. Rfe1 {[%clk 0:02:30]} 13... Qb7 {[%clk
0:01:39.5]} 14. a5 {[%clk 0:02:11.4]} 14... bxa5 {[%clk 0:01:24.1]} 15. Rxa5
{[%clk 0:02:03.2]} 15... a6 {[%clk 0:01:23.2]} 16. Bd3 {[%clk 0:01:45.8]} 16...
Qxb2 {[%clk 0:01:00.9]} 17. Nc4 {[%clk 0:01:25.2]} 17... Qxe2 {[%clk 0:00:58.1]}
18. Bxe2 {[%clk 0:01:26.1]} 18... Nd5 {[%clk 0:00:47]} 19. Bd2 {[%clk
0:01:25.8]} 19... Bb5 {[%clk 0:00:40.7]} 20. Raa1 {[%clk 0:01:01.7]} 20... Nc6
{[%clk 0:00:30.1]} 21. Reb1 {[%clk 0:00:48]} 21... Rab8 {[%clk 0:00:26.6]} 22.
Bf1 {[%clk 0:00:42.5]} 22... h6 {[%clk 0:00:23.1]} 23. Ne1 {[%clk 0:00:39.1]}
23... Rfc8 {[%clk 0:00:21.1]} 24. Nc2 {[%clk 0:00:38.8]} 24... Nd8 {[%clk
0:00:15.6]} 25. N2a3 {[%clk 0:00:38.8]} 25... Bd7 {[%clk 0:00:13.8]} 26. Rxb8
{[%clk 0:00:36.7]} 26... Rxb8 {[%clk 0:00:14.7]} 27. Na5 {[%clk 0:00:36]} 27...
Nc6 {[%clk 0:00:06.7]} 28. c4 {[%clk 0:00:35.1]} 28... Nxa5 {[%clk 0:00:06.4]}
29. Bxa5 {[%clk 0:00:30.2]} 29... Nb4 {[%clk 0:00:05.5]} 30. Bc7 {[%clk
0:00:07.3]} 30... Rb7 {[%clk 0:00:04.3]} 31. Ba5 {[%clk 0:00:07.8]} 31... Rb8
{[%clk 0:00:02.1]} 32. g4 {[%clk 0:00:06.5]} 32... Nc6 {[%clk 0:00:02.4]} 33.
Bc3 {[%clk 0:00:06.2]} 33... Bf6 {[%clk 0:00:02.8]} 34. Nc2 {[%clk 0:00:06.4]}
34... Rb3 {[%clk 0:00:03.1]} 35. Be1 {[%clk 0:00:02.9]} 35... Nxd4 {[%clk
0:00:03.4]} 36. Nxd4 {[%clk 0:00:03.4]} 36... Bxd4 {[%clk 0:00:04.3]} 37. Rxa6
{[%clk 0:00:04]} 37... Rb1 {[%clk 0:00:04.1]} 38. Rxd6 {[%clk 0:00:03.9]} 38...
Rxe1 {[%clk 0:00:03.1]} 39. Rxd4 {[%clk 0:00:03.4]} 39... Bc6 {[%clk 0:00:03.4]}
40. Rd6 {[%clk 0:00:03.1]} 40... Bf3 {[%clk 0:00:02.8]} 41. Rd3 {[%clk
0:00:02.9]} 41... Be2 {[%clk 0:00:02.9]} 42. Re3 {[%clk 0:00:03.2]} 42... Rxf1+
{[%clk 0:00:03.8]} 43. Kg2 {[%clk 0:00:03.7]} 43... Re1 {[%clk 0:00:04.7]} 44.
c5 {[%clk 0:00:03.5]} 44... Bf1+ {[%clk 0:00:04.2]} 45. Kf3 {[%clk 0:00:02.3]}
45... Rxe3+ {[%clk 0:00:05.1]} 46. Kxe3 {[%clk 0:00:02.8]} 46... Bb5 {[%clk
0:00:06]} 47. Kd4 {[%clk 0:00:03.1]} 47... Bc6 {[%clk 0:00:06.7]} 48. Ke5 {[%clk
0:00:04]} 48... Kf8 {[%clk 0:00:06.6]} 49. Kd6 {[%clk 0:00:04.9]} 49... Bd5
{[%clk 0:00:06.6]} 50. f4 {[%clk 0:00:05.1]} 50... g5 {[%clk 0:00:06.5]} 51. f5
{[%clk 0:00:05.4]} 51... Ke8 {[%clk 0:00:06.9]} 52. f6 {[%clk 0:00:05.8]} 52...
Kf8 {[%clk 0:00:05.8]} 53. c6 {[%clk 0:00:05.4]} 53... Bxc6 {[%clk 0:00:06.3]}
54. Kxc6 {[%clk 0:00:06.3]} 54... Kg8 {[%clk 0:00:06.9]} 55. Kd6 {[%clk
0:00:06.3]} 55... Kh7 {[%clk 0:00:07.8]} 56. h4 {[%clk 0:00:04.6]} 56... gxh4
{[%clk 0:00:07.9]} 57. g5 {[%clk 0:00:04.9]} 57... hxg5 {[%clk 0:00:08]} 0-1

[Event "Late-Titled-Tuesday-Blitz-August-29-2023"]
[Site "Chess.com"]
[Date "2023.08.29"]
[Round "5"]
[White "tteshan"]
[Black "GiorgianBarbosa"]
[Result "1-0"]
[WhiteElo "2566"]
[BlackElo "2422"]
[TimeControl "180+1"]
[EndTime "14:55:40 PDT"]
[Termination "tteshan won by checkmate"]

1. e4 {[%clk 0:03:00.9]} 1... c5 {[%clk 0:02:54]} 2. c3 {[%clk 0:02:59.9]} 2...
g6 {[%clk 0:02:53.3]} 3. d4 {[%clk 0:02:58.5]} 3... cxd4 {[%clk 0:02:54.2]} 4.
cxd4 {[%clk 0:02:59.3]} 4... d5 {[%clk 0:02:54.8]} 5. e5 {[%clk 0:02:59]} 5...
Bg7 {[%clk 0:02:54.6]} 6. Nc3 {[%clk 0:02:58.9]} 6... Nc6 {[%clk 0:02:52.3]} 7.
Be3 {[%clk 0:02:53.7]} 7... Nh6 {[%clk 0:02:49.9]} 8. Qb3 {[%clk 0:02:43]} 8...
Nf5 {[%clk 0:02:31.3]} 9. Nf3 {[%clk 0:02:36.2]} 9... Nxe3 {[%clk 0:02:24.2]}
10. fxe3 {[%clk 0:02:37.1]} 10... Bg4 {[%clk 0:02:21]} 11. Qxd5 {[%clk
0:02:05.8]} 11... O-O {[%clk 0:01:48.7]} 12. Qxd8 {[%clk 0:02:04.3]} 12... Rfxd8
{[%clk 0:01:47.8]} 13. Be2 {[%clk 0:02:00]} 13... Nb4 {[%clk 0:01:43.5]} 14. Kf2
{[%clk 0:01:57.8]} 14... f6 {[%clk 0:01:16.7]} 15. exf6 {[%clk 0:01:54.8]} 15...
exf6 {[%clk 0:01:17.6]} 16. a3 {[%clk 0:01:47.9]} 16... Nc6 {[%clk 0:01:15.6]}
17. Rac1 {[%clk 0:01:37.7]} 17... Bh6 {[%clk 0:01:10.4]} 18. h3 {[%clk
0:01:34.9]} 18... Be6 {[%clk 0:01:04.4]} 19. d5 {[%clk 0:01:27.4]} 19... Bd7
{[%clk 0:00:53.5]} 20. dxc6 {[%clk 0:01:26.7]} 20... Bxc6 {[%clk 0:00:54.4]} 21.
Bc4+ {[%clk 0:01:24.3]} 21... Kh8 {[%clk 0:00:51.1]} 22. Rcd1 {[%clk 0:01:19.3]}
22... Re8 {[%clk 0:00:50.9]} 23. Rd3 {[%clk 0:01:14.5]} 23... a6 {[%clk
0:00:50.8]} 24. Rhd1 {[%clk 0:01:10.6]} 24... Bf8 {[%clk 0:00:43.9]} 25. Bd5
{[%clk 0:01:08.9]} 25... Bc5 {[%clk 0:00:40.8]} 26. Bxc6 {[%clk 0:01:06.2]}
26... bxc6 {[%clk 0:00:40.8]} 27. Nd4 {[%clk 0:01:05.9]} 27... Rab8 {[%clk
0:00:39.7]} 28. b4 {[%clk 0:01:02.7]} 28... Bb6 {[%clk 0:00:39.2]} 29. Nxc6
{[%clk 0:00:57.4]} 29... Rbc8 {[%clk 0:00:39.7]} 30. Nd4 {[%clk 0:00:56.1]}
30... f5 {[%clk 0:00:37.7]} 31. Nce2 {[%clk 0:00:55.1]} 31... Re4 {[%clk
0:00:33.9]} 32. Rc1 {[%clk 0:00:51.5]} 32... Rce8 {[%clk 0:00:28.5]} 33. Rc6
{[%clk 0:00:47.1]} 33... Ba7 {[%clk 0:00:25.2]} 34. Rxa6 {[%clk 0:00:46.2]}
34... Bb8 {[%clk 0:00:25.3]} 35. Rc6 {[%clk 0:00:41.3]} 35... Ba7 {[%clk
0:00:18.7]} 36. b5 {[%clk 0:00:40.6]} 36... f4 {[%clk 0:00:17.2]} 37. Nxf4
{[%clk 0:00:37]} 37... Rf8 {[%clk 0:00:17]} 38. Kf3 {[%clk 0:00:27]} 38... Ree8
{[%clk 0:00:16.2]} 39. h4 {[%clk 0:00:25.1]} 39... Bb8 {[%clk 0:00:16]} 40. b6
{[%clk 0:00:23.5]} 40... h6 {[%clk 0:00:14.8]} 41. Rxg6 {[%clk 0:00:17.6]} 41...
Kh7 {[%clk 0:00:14.5]} 42. Rc6 {[%clk 0:00:16.8]} 42... Rf7 {[%clk 0:00:13.1]}
43. g4 {[%clk 0:00:12.1]} 43... Ref8 {[%clk 0:00:12.2]} 44. Ne6 {[%clk
0:00:12.3]} 44... Re8 {[%clk 0:00:12.6]} 45. g5 {[%clk 0:00:12.2]} 45... hxg5
{[%clk 0:00:12.1]} 46. hxg5 {[%clk 0:00:13.1]} 46... Kg8 {[%clk 0:00:11.8]} 47.
g6 {[%clk 0:00:13.3]} 47... Rf6 {[%clk 0:00:12.3]} 48. b7 {[%clk 0:00:12.7]}
48... Bxf4 {[%clk 0:00:10.3]} 49. exf4 {[%clk 0:00:11.5]} 49... Rfxe6 {[%clk
0:00:07.2]} 50. Rxe6 {[%clk 0:00:11.6]} 50... Rxe6 {[%clk 0:00:08]} 51. b8=Q+
{[%clk 0:00:12.1]} 51... Kg7 {[%clk 0:00:08.5]} 52. Rd7+ {[%clk 0:00:11.7]}
52... Kf6 {[%clk 0:00:08.5]} 53. Qf8+ {[%clk 0:00:10.5]} 53... Kxg6 {[%clk
0:00:08.7]} 54. f5+ {[%clk 0:00:09]} 54... Kh5 {[%clk 0:00:09.6]} 55. fxe6
{[%clk 0:00:08.9]} 55... Kh4 {[%clk 0:00:09.5]} 56. Rg7 {[%clk 0:00:08.3]} 56...
Kh3 {[%clk 0:00:10.4]} 57. Qh8# {[%clk 0:00:08.8]} 1-0

[Event "Late-Titled-Tuesday-Blitz-August-29-2023"]
[Site "Chess.com"]
[Date "2023.08.29"]
[Round "5"]
[White "EsmeraldasAnderson03"]
[Black "Zq1"]
[Result "1-0"]
[WhiteElo "2393"]
[BlackElo "2520"]
[TimeControl "180+1"]
[EndTime "14:55:42 PDT"]
[Termination "EsmeraldasAnderson03 won by resignation"]

1. d4 {[%clk 0:03:00.9]} 1... d5 {[%clk 0:02:58.9]} 2. Nf3 {[%clk 0:03:00.3]}
2... e6 {[%clk 0:02:56.5]} 3. Bg5 {[%clk 0:03:00.6]} 3... Nf6 {[%clk 0:02:52.2]}
4. c4 {[%clk 0:03:00.8]} 4... Be7 {[%clk 0:02:51.5]} 5. cxd5 {[%clk 0:03:01.3]}
5... exd5 {[%clk 0:02:50.7]} 6. Nc3 {[%clk 0:03:01.8]} 6... c6 {[%clk
0:02:49.2]} 7. Qc2 {[%clk 0:03:02.2]} 7... g6 {[%clk 0:02:46.1]} 8. e3 {[%clk
0:03:00.5]} 8... Bf5 {[%clk 0:02:45.1]} 9. Bd3 {[%clk 0:03:00.7]} 9... Bxd3
{[%clk 0:02:44.9]} 10. Qxd3 {[%clk 0:03:01.6]} 10... Nbd7 {[%clk 0:02:43.2]} 11.
O-O {[%clk 0:03:01.5]} 11... O-O {[%clk 0:02:42.5]} 12. Rab1 {[%clk 0:03:01.4]}
12... a5 {[%clk 0:02:41.3]} 13. a3 {[%clk 0:03:01.3]} 13... Re8 {[%clk 0:02:40]}
14. b4 {[%clk 0:02:57.8]} 14... axb4 {[%clk 0:02:39.2]} 15. axb4 {[%clk
0:02:58.7]} 15... b5 {[%clk 0:02:35.7]} 16. Nd2 {[%clk 0:02:56.3]} 16... Nb6
{[%clk 0:02:33.7]} 17. Bxf6 {[%clk 0:02:50.8]} 17... Bxf6 {[%clk 0:02:33]} 18.
Nb3 {[%clk 0:02:51.6]} 18... Be7 {[%clk 0:02:30.7]} 19. Nc5 {[%clk 0:02:50.8]}
19... Bxc5 {[%clk 0:02:28.7]} 20. dxc5 {[%clk 0:02:51]} 20... Nc4 {[%clk
0:02:25.5]} 21. Ne2 {[%clk 0:02:51.1]} 21... Ra3 {[%clk 0:02:20.8]} 22. Qd4
{[%clk 0:02:49.3]} 22... Re4 {[%clk 0:02:18.8]} 23. Qd1 {[%clk 0:02:47.3]} 23...
Qd7 {[%clk 0:02:06]} 24. Ra1 {[%clk 0:02:45.6]} 24... Rxa1 {[%clk 0:02:00]} 25.
Qxa1 {[%clk 0:02:46.5]} 25... Re8 {[%clk 0:01:30.6]} 26. Qa6 {[%clk 0:02:41.2]}
26... Qc8 {[%clk 0:01:29.4]} 27. Ra1 {[%clk 0:02:40.5]} 27... Ne5 {[%clk
0:01:21.5]} 28. Qxc8 {[%clk 0:02:37.7]} 28... Rxc8 {[%clk 0:01:20.8]} 29. Ra3
{[%clk 0:02:35.2]} 29... Kf8 {[%clk 0:01:11.4]} 30. Nd4 {[%clk 0:02:35.5]} 30...
Ke8 {[%clk 0:01:10.3]} 31. Kf1 {[%clk 0:02:32]} 31... Kd7 {[%clk 0:01:10]} 32.
Ke2 {[%clk 0:02:32]} 32... Nc4 {[%clk 0:00:58.1]} 33. Ra6 {[%clk 0:02:31.3]}
33... Ne5 {[%clk 0:00:53.2]} 34. h4 {[%clk 0:02:27.4]} 34... h5 {[%clk
0:00:50.4]} 35. g3 {[%clk 0:02:19.5]} 35... Ng4 {[%clk 0:00:49.5]} 36. Ra7+
{[%clk 0:02:12.9]} 36... Rc7 {[%clk 0:00:48.9]} 37. Ra8 {[%clk 0:02:13.5]} 37...
Nf6 {[%clk 0:00:46.1]} 38. Nf3 {[%clk 0:02:05.2]} 38... Ng4 {[%clk 0:00:44.3]}
39. Ng5 {[%clk 0:02:00.5]} 39... Ke7 {[%clk 0:00:39.2]} 40. f3 {[%clk
0:01:51.1]} 40... Nf6 {[%clk 0:00:36]} 41. e4 {[%clk 0:01:50.1]} 41... dxe4
{[%clk 0:00:34.8]} 42. fxe4 {[%clk 0:01:51]} 42... Nd7 {[%clk 0:00:33.3]} 43.
Nf3 {[%clk 0:01:46.4]} 43... Nf6 {[%clk 0:00:29.3]} 44. Ke3 {[%clk 0:01:41.2]}
44... Ng4+ {[%clk 0:00:27.3]} 45. Kf4 {[%clk 0:01:41.3]} 45... Rd7 {[%clk
0:00:24]} 46. Rc8 {[%clk 0:01:33.6]} 46... Rd3 {[%clk 0:00:23.3]} 47. Ne5 {[%clk
0:01:28.4]} 47... Nxe5 {[%clk 0:00:21.5]} 48. Kxe5 {[%clk 0:01:29.3]} 48... Kd7
{[%clk 0:00:21.2]} 49. Rf8 {[%clk 0:01:28.2]} 49... Rf3 {[%clk 0:00:20.5]} 50.
Kd4 {[%clk 0:01:14.2]} 50... Ke7 {[%clk 0:00:18.9]} 51. Rc8 {[%clk 0:01:14.5]}
51... Rxg3 {[%clk 0:00:18.8]} 52. Rxc6 {[%clk 0:01:14.9]} 52... Rg4 {[%clk
0:00:18.4]} 53. Rb6 {[%clk 0:01:09.5]} 53... Rxh4 {[%clk 0:00:18.3]} 54. Rxb5
{[%clk 0:01:06.3]} 54... Rh1 {[%clk 0:00:18]} 55. Rb7+ {[%clk 0:00:57.1]} 55...
Ke6 {[%clk 0:00:16.2]} 56. Rb6+ {[%clk 0:00:56.5]} 56... Kd7 {[%clk 0:00:13.6]}
57. Ke5 {[%clk 0:00:51.5]} 57... Rf1 {[%clk 0:00:12.4]} 58. b5 {[%clk
0:00:47.7]} 58... h4 {[%clk 0:00:11.5]} 59. Rb7+ {[%clk 0:00:46.9]} 59... Kc8
{[%clk 0:00:10.6]} 60. c6 {[%clk 0:00:46.5]} 60... h3 {[%clk 0:00:09.9]} 61. Ra7
{[%clk 0:00:42.6]} 61... h2 {[%clk 0:00:09.1]} 62. b6 {[%clk 0:00:42.6]} 62...
Kd8 {[%clk 0:00:07.4]} 63. c7+ {[%clk 0:00:41]} 63... Kd7 {[%clk 0:00:07.1]} 64.
Ra8 {[%clk 0:00:41.5]} 64... Rc1 {[%clk 0:00:05.8]} 65. Rd8+ {[%clk 0:00:40.3]}
65... Ke7 {[%clk 0:00:05.2]} 66. Rh8 {[%clk 0:00:36.4]} 66... f6+ {[%clk
0:00:05.1]} 67. Kd5 {[%clk 0:00:34.6]} 67... Kd7 {[%clk 0:00:05.1]} 68. Rxh2
{[%clk 0:00:29.2]} 68... Rd1+ {[%clk 0:00:04.1]} 69. Kc5 {[%clk 0:00:29.3]}
69... Rc1+ {[%clk 0:00:04]} 70. Kb5 {[%clk 0:00:29.8]} 70... Rb1+ {[%clk
0:00:04]} 71. Ka6 {[%clk 0:00:29.4]} 1-0

[Event "Late-Titled-Tuesday-Blitz-August-29-2023"]
[Site "Chess.com"]
[Date "2023.08.29"]
[Round "5"]
[White "Bauman_Guy"]
[Black "Tejas_Rama"]
[Result "1-0"]
[WhiteElo "2848"]
[BlackElo "2549"]
[TimeControl "180+1"]
[EndTime "14:55:43 PDT"]
[Termination "Bauman_Guy won on time"]

1. e4 {[%clk 0:03:00.9]} 1... e5 {[%clk 0:02:52.9]} 2. Nf3 {[%clk 0:03:01]} 2...
Nc6 {[%clk 0:02:53.3]} 3. Bb5 {[%clk 0:03:01.7]} 3... Nf6 {[%clk 0:02:52.9]} 4.
O-O {[%clk 0:03:02.1]} 4... Nxe4 {[%clk 0:02:52.8]} 5. Re1 {[%clk 0:03:02.7]}
5... Nd6 {[%clk 0:02:52.9]} 6. a4 {[%clk 0:03:03.4]} 6... Be7 {[%clk 0:02:46.7]}
7. Nc3 {[%clk 0:03:03.1]} 7... O-O {[%clk 0:02:40.1]} 8. d4 {[%clk 0:03:03.1]}
8... exd4 {[%clk 0:02:34.7]} 9. Nd5 {[%clk 0:03:03]} 9... Bf6 {[%clk 0:02:06]}
10. Bd3 {[%clk 0:03:02.2]} 10... h6 {[%clk 0:01:42.6]} 11. Bf4 {[%clk
0:03:01.1]} 11... b6 {[%clk 0:01:28.2]} 12. Qd2 {[%clk 0:03:00.5]} 12... g5
{[%clk 0:01:19.7]} 13. Nxf6+ {[%clk 0:02:34.6]} 13... Qxf6 {[%clk 0:01:18.4]}
14. Nxg5 {[%clk 0:02:35.3]} 14... hxg5 {[%clk 0:01:14.6]} 15. Bxg5 {[%clk
0:02:36.2]} 15... Qg7 {[%clk 0:01:04.9]} 16. Bh6 {[%clk 0:02:34.8]} 16... Qf6
{[%clk 0:01:03.3]} 17. Bxf8 {[%clk 0:01:59.2]} 17... Kxf8 {[%clk 0:01:03.1]} 18.
Qe2 {[%clk 0:01:55.2]} 18... Bb7 {[%clk 0:00:54.4]} 19. Qh5 {[%clk 0:01:54.1]}
19... Re8 {[%clk 0:00:52]} 20. Rxe8+ {[%clk 0:01:49.9]} 20... Kxe8 {[%clk
0:00:39.9]} 21. Re1+ {[%clk 0:01:50]} 21... Kf8 {[%clk 0:00:39.1]} 22. h4 {[%clk
0:01:49.9]} 22... Nb4 {[%clk 0:00:34.7]} 23. Qg4 {[%clk 0:01:08.8]} 23... Nxd3
{[%clk 0:00:34.7]} 24. cxd3 {[%clk 0:01:09.7]} 24... Qg6 {[%clk 0:00:34.9]} 25.
f3 {[%clk 0:01:09.7]} 25... Nf5 {[%clk 0:00:28.6]} 26. h5 {[%clk 0:00:36.1]}
26... Qxg4 {[%clk 0:00:25]} 27. fxg4 {[%clk 0:00:37]} 27... Ne3 {[%clk
0:00:25.2]} 28. g5 {[%clk 0:00:37.6]} 28... Bxg2 {[%clk 0:00:21.4]} 29. Kf2
{[%clk 0:00:37.9]} 29... Kg7 {[%clk 0:00:16]} 30. b4 {[%clk 0:00:31.8]} 30...
Bd5 {[%clk 0:00:12]} 31. Rc1 {[%clk 0:00:30.1]} 31... c6 {[%clk 0:00:11.5]} 32.
Kg3 {[%clk 0:00:28.6]} 32... Bb3 {[%clk 0:00:09.9]} 33. a5 {[%clk 0:00:28.7]}
33... b5 {[%clk 0:00:08.4]} 34. Kf4 {[%clk 0:00:26.4]} 34... Be6 {[%clk
0:00:05.2]} 35. Ke5 {[%clk 0:00:24.4]} 35... Nd5 {[%clk 0:00:05.6]} 36. Rb1
{[%clk 0:00:20.5]} 36... Nc3 {[%clk 0:00:04.5]} 37. Rb2 {[%clk 0:00:20.8]} 37...
Na4 {[%clk 0:00:04.6]} 38. Rh2 {[%clk 0:00:20.1]} 38... c5 {[%clk 0:00:03.6]}
39. bxc5 {[%clk 0:00:16.2]} 39... Nxc5 {[%clk 0:00:04.5]} 40. Kxd4 {[%clk
0:00:16.6]} 40... Nb3+ {[%clk 0:00:04.4]} 41. Ke5 {[%clk 0:00:15.2]} 41... Nxa5
{[%clk 0:00:05.3]} 42. d4 {[%clk 0:00:16.1]} 42... Nc6+ {[%clk 0:00:05.4]} 43.
Ke4 {[%clk 0:00:16]} 43... d5+ {[%clk 0:00:05.1]} 44. Ke3 {[%clk 0:00:16.6]}
44... Ne7 {[%clk 0:00:05]} 45. Kf4 {[%clk 0:00:16]} 45... Nf5 {[%clk 0:00:04.1]}
46. Ke5 {[%clk 0:00:15.5]} 46... a5 {[%clk 0:00:04.7]} 47. Rc2 {[%clk
0:00:14.8]} 47... a4 {[%clk 0:00:05.1]} 48. Rc7 {[%clk 0:00:15]} 48... a3 {[%clk
0:00:04.9]} 49. Ra7 {[%clk 0:00:14.6]} 49... b4 {[%clk 0:00:04.8]} 50. Ra4
{[%clk 0:00:14.9]} 50... Ne3 {[%clk 0:00:03]} 51. g6 {[%clk 0:00:10.3]} 51...
fxg6 {[%clk 0:00:01.9]} 52. Kxe6 {[%clk 0:00:08.7]} 52... gxh5 {[%clk
0:00:01.9]} 53. Rxb4 {[%clk 0:00:08.4]} 53... Kg6 {[%clk 0:00:01.6]} 54. Ra4
{[%clk 0:00:07.6]} 54... Nc4 {[%clk 0:00:02.3]} 55. Ra6 {[%clk 0:00:06.1]} 55...
Kg5 {[%clk 0:00:02.4]} 56. Kxd5 {[%clk 0:00:06.6]} 56... Ne3+ {[%clk 0:00:03]}
57. Ke4 {[%clk 0:00:07]} 57... Nc4 {[%clk 0:00:02.4]} 58. Kd3 {[%clk 0:00:07.2]}
58... Nb2+ {[%clk 0:00:02.3]} 59. Kc3 {[%clk 0:00:07.7]} 1-0